[Event "French-ch U12-U14 2024"]
[Site "Agen"]
[Date "2024.04.19"]
[Round "7.5"]
[White "Le Floch, Alexia"]
[Black "Findeling Creus, Anais"]
[Result "1-0"]
[ECO "D63"]
[WhiteElo "1641"]
[BlackElo "1491"]
[Annotator "NA RC COMBH"]
[PlyCount "145"]
[EventDate "2024.04.14"]
[EventType "swiss"]
[EventCountry "FRA"]
[SourceTitle "playchess.com"]
[Source "ChessBase"]
[SourceQuality "1"]
[TimeControl "5400+30"]

1. d4 {[%emt 0:00:02]} d5 {[%emt 0:00:08]} 2. c4 {[%emt 0:00:06]} e6 {[%emt 0:00:20]} 3. Nc3 {[%emt 0:00:08]} Nf6 {[%emt 0:01:05]} 4. Nf3 {[%emt 0:00:14]} Be7 {[%emt 0:00:59]} 5. Bg5 {[%emt 0:00:20]} O-O {[%emt 0:00:43]} 6. e3 {[%emt 0:00:20]} b6 {[%emt 0:01:06]} 7. cxd5 {[%emt 0:00:32]} exd5 {[%emt 0:00:57]} 8. Be2 {[%emt 0:00:28]} Bb7 {[%emt 0:01:22]} 9. O-O {[%emt 0:00:49]} Nbd7 {[%emt 0:01:18]} 10. Rc1 {[%emt 0:01:07]} c5 {[%emt 0:02:37]} 11. dxc5 {[%emt 0:01:20]} bxc5 {[%emt 0:00:52]} 12. Qb3 {[%emt 0:01:36]} Nb6 {[%emt 0:01:33]} 13. Rfd1 {[%emt 0:02:50]} Rc8 {[%emt 0:04:28]} 14. Rd2 {[%emt 0:04:09]} Qd7 {[%emt 0:02:33]} 15. Ne5 {[%emt 0:01:54]} Qe6 {[%emt 0:03:57]} 16. Ng4 {[%emt 0:10:54]} Rfd8 {[%emt 0:12:10]} 17. Nxf6+ {[%emt 0:00:54]} Bxf6 {[%emt 0:00:11]} 18. Bxf6 {[%emt 0:00:11]} Qxf6 {[%emt 0:00:08]} 19. Rcd1 {[%emt 0:04:15]} d4 {[%emt 0:06:26]} 20. exd4 {[%emt 0:03:00]} cxd4 {[%emt 0:00:53]} 21. Nb5 {[%emt 0:01:31]} Qg5 {[%emt 0:06:47]} 22. Qg3 {[%emt 0:01:16]} Qxg3 {[%emt 0:03:06]} 23. hxg3 {[%emt 0:00:09]} Ba6 {[%emt 0:00:35]} 24. Nxd4 {[%emt 0:01:48]} Bc4 {[%emt 0:02:45]} 25. b3 {[%emt 0:02:12]} Bxe2 {[%emt 0:01:21]} 26. Nxe2 {[%emt 0:00:45]} Rxd2 {[%emt 0:01:41]} 27. Rxd2 {[%emt 0:00:06]} Kf8 {[%emt 0:00:44]} 28. Kf1 {[%emt 0:00:49]} Ke7 {[%emt 0:02:10]} 29. Nf4 {[%emt 0:00:32]} Rd8 {[%emt 0:05:54]} 30. Rc2 {[%emt 0:05:16]} g6 {[%emt 0:04:36]} 31. a4 {[%emt 0:02:07]} Rc8 {[%emt 0:02:20]} 32. Re2+ {[%emt 0:01:05]} Kd7 {[%emt 0:01:04]} 33. Rd2+ {[%emt 0:00:23]} Ke7 {[%emt 0:00:39]} 34. Nd5+ {[%emt 0:01:18]} Ke6 {[%emt 0:01:50]} 35. Nxb6 {[%emt 0:00:39]} axb6 {[%emt 0:00:07]} 36. Re2+ {[%emt 0:00:14]} Kd6 {[%emt 0:00:29]} 37. Rd2+ {[%emt 0:00:14]} Ke6 {[%emt 0:00:14]} 38. Ke2 {[%emt 0:00:50]} Rc3 {[%emt 0:00:52]} 39. Rb2 {[%emt 0:00:16]} Kd5 {[%emt 0:00:53]} 40. Kd2 {[%emt 0:11:34]} Kd4 {[%emt 0:01:05]} 41. b4 {[%emt 0:01:28]} Ra3 {[%emt 0:00:57]} 42. a5 {[%emt 0:01:03]} bxa5 {[%emt 0:00:25]} 43. b5 {[%emt 0:06:07]} Kc5 {[%emt 0:00:51]} 44. b6 {[%emt 0:00:29]} Ra4 {[%emt 0:04:05]} 45. b7 {[%emt 0:01:27]} Rd4+ {[%emt 0:00:14]} 46. Kc1 {[%emt 0:00:23]} Rd8 {[%emt 0:00:28]} 47. b8=Q {[%emt 0:00:10]} Rxb8 {[%emt 0:00:08]} 48. Rxb8 {[%emt 0:00:09]} a4 {[%emt 0:00:07]} 49. Kb2 {[%emt 0:00:17]} Kd4 {[%emt 0:24:47]} 50. Ka3 {[%emt 0:00:09]} Kd3 {[%emt 0:00:00]} 51. Kxa4 {[%emt 0:00:14]} Ke2 {[%emt 0:00:00]} 52. Rb2+ {[%emt 0:00:07]} Kf1 {[%emt 0:00:00]} 53. f3 {[%emt 0:00:21]} Kg1 {[%emt 0:00:00]} 54. Kb5 {[%emt 0:00:10]} Kh2 {[%emt 0:00:00]} 55. g4 {[%emt 0:00:19]} Kg3 {[%emt 0:00:00]} 56. Kc6 {[%emt 0:00:09]} h5 {[%emt 0:00:00]} 57. gxh5 {[%emt 0:00:12]} gxh5 {[%emt 0:00:00]} 58. Kd6 {[%emt 0:00:07]} h4 {[%emt 0:00:00]} 59. Ke7 {[%emt 0:00:14]} h3 {[%emt 0:00:00]} 60. gxh3 {[%emt 0:00:09]} Kxh3 {[%emt 0:00:00]} 61. Kxf7 {[%emt 0:00:05]} Kg3 {[%emt 0:00:00]} 62. Rb3 {[%emt 0:00:08]} Kf4 {[%emt 0:00:00]} 63. Kf6 {[%emt 0:00:16]} Kg3 {[%emt 0:00:00]} 64. Kf5 {[%emt 0:00:09]} Kh3 {[%emt 0:00:00]} 65. f4+ {[%emt 0:00:14]} Kh4 {[%emt 0:00:00]} 66. Ke6 {[%emt 0:00:13]} Kg4 {[%emt 0:00:00]} 67. f5 {[%emt 0:00:09]} Kg5 {[%emt 0:00:00]} 68. f6 {[%emt 0:00:14]} Kg4 {[%emt 0:00:00]} 69. f7 {[%emt 0:00:09]} Kg5 {[%emt 0:00:00]} 70. f8=Q {[%emt 0:41:56]} Kg4 {[%emt 0:00:00]} 71. Rb7 {[%emt 0:00:00]} Kg5 {[%emt 0:00:00]} 72. Rg7+ {[%emt 0:00:00]} Kh5 {[%emt 0:00:00]} 73. Qh8# {[%emt 0:00:00]} 1-0

[Event "French-ch U12-U14 2024"]
[Site "Agen"]
[Date "2024.04.19"]
[Round "7.7"]
[White "El Zein, Bassam"]
[Black "Sagi, Elisha"]
[Result "1-0"]
[ECO "A46"]
[WhiteElo "1924"]
[BlackElo "1896"]
[Annotator "TA"]
[PlyCount "65"]
[EventDate "2024.04.14"]
[EventType "swiss"]
[EventCountry "FRA"]
[SourceTitle "playchess.com"]
[Source "ChessBase"]
[SourceQuality "1"]
[TimeControl "5400+30"]

{[%evp 11,65,17,29,12,16,8,20,24,33,25,95,87,102,107,166,72,58,60,144,139,391,404,420,399,463,464,487,473,739,786,810,808,908,927,1222,1211,1441,1347,1773,1773,1976,1911,2334,2061,29979,29980,29984,29985,3679,3255,29987,29988,29988,29989,29990,29991]} 1. Nf3 {[%emt 0:00:02]} Nf6 {[%emt 0:00:04]} 2. g3 {[%emt 0:00:04]} b5 {[%emt 0:00:05]} 3. Bg2 {[%emt 0:00:33]} Bb7 {[%emt 0:00:05]} 4. O-O {[%emt 0:00:18]} e6 {[%emt 0:00:11]} 5. d4 {[%emt 0:00:35]} c5 {[%emt 0:00:13]} 6. c3 {[%emt 0:06:54]} Nc6 {[%emt 0:00:04]} 7. a4 {[%emt 0:00:53]} b4 {[%emt 0:00:33]} 8. Bg5 {[%emt 0:04:25]} cxd4 {[%emt 0:14:46]} 9. Nxd4 {[%emt 1:21:16] The position is equal.} d5 {[%emt 0:02:14]} 10. a5 {[%emt 0:00:00]} Nxd4 {[%emt 0:25:44]} (10... a6 $11 {remains equal.}) 11. Qxd4 $16 {[%emt 0:00:00]} h6 {[%emt 0:00:39]} 12. Bf4 {[%emt 0:00:00] White is more active.} Qe7 {[%emt 0:00:54]} (12... bxc3 $16 {was necessary.} 13. Nxc3 Bc6) 13. Bd2 {[%emt 0:00:00]} (13. a6 $18 Bc6 14. Rc1) 13... bxc3 {[%emt 0:01:07]} 14. Nxc3 {[%emt 0:00:00]} Qc5 {[%emt 0:05:28] [#]} (14... Qd7 $14) 15. Qd3 $1 {[%emt 0:00:00] Rac1 would now be deadly.} Bc6 $2 {[%emt 0:04:05][%mdl 8192] [#] This costs Black the game.} (15... a6 $16 {is a better defense.} 16. Rfc1 Qd6) 16. b4 $1 $18 {[%emt 0:00:00][%cal Bb2b4,Bb4b5][%mdl 32]} Qd6 {[%emt 0:02:02]} ({Much weaker is} 16... Qxb4 17. Nxd5 Qb7 18. Nxf6+ gxf6 19. Rab1 $18) 17. b5 {[%emt 0:00:00]} Bd7 {[%emt 0:00:20]} 18. Bf4 {[%emt 0:00:00]} Qc5 {[%emt 0:08:43]} 19. Rfc1 {[%emt 0:00:00][%cal Oc3d5,Bf1c1,Bc1b1,Bb1b6,Bb6b8][%mdl 32] Hoping for Nxd5!} Qb4 {[%emt 0:01:06]} (19... Ng4 $142 20. Qf3 h5) 20. Rcb1 {[%emt 0:00:00]} Qc5 {[%emt 0:01:24]} 21. Na4 {[%emt 0:00:00]} Qc8 {[%emt 0:00:39]} 22. b6 {[%emt 0:00:00]} axb6 {[%emt 0:01:24]} 23. Nxb6 {[%emt 0:00:00]} Qc6 {[%emt 0:01:06]} 24. Nxa8 {[%emt 0:00:00]} Bd6 {[%emt 0:00:04] Against Rb8+} 25. Rb6 {[%emt 0:00:00]} Qxa8 {[%emt 0:00:08]} 26. Bxd6 {[%emt 0:00:00]} Bc8 {[%emt 0:00:12][%cal Bd7c8,Bc8b7,Bb7a8][%mdl 32]} 27. Rb8 {[%emt 0:00:00]} Qc6 {[%emt 0:00:14]} 28. a6 {[%emt 0:00:00][%cal Ba5a6,Ba6a7][%mdl 32]} Kd7 {[%emt 0:01:56] [#]} 29. a7 $1 {[%emt 0:00:00]} Bb7 {[%emt 0:00:18]} (29... Kxd6 30. a8=Q) 30. Rxh8 {[%emt 0:00:00]} Ne8 {[%emt 0:00:27] [#]} 31. Rxe8 $1 {[%emt 0:00:00] White mates.} Kxe8 {[%emt 0:00:12]} 32. Qa3 {[%emt 0:00:00]} Ba8 {[%emt 0:01:19]} 33. Rc1 {[%emt 0:00:00] Weighted Error Value: White=0.06 (flawless) /Black=0.95.  Loses game:     	---       	Black=1      Mistake:       	White=1     	Black=4      OK:         	White=7     	Black=5      Strong:       	White=2     	---} 1-0

[Event "French-ch U12-U14 2024"]
[Site "Agen"]
[Date "2024.04.19"]
[Round "7.9"]
[White "Lequang, Enzo"]
[Black "Aeschbacher, Dimitri"]
[Result "1-0"]
[ECO "D05"]
[WhiteElo "1807"]
[BlackElo "1959"]
[Annotator "TA"]
[PlyCount "68"]
[EventDate "2024.04.14"]
[EventType "swiss"]
[EventCountry "FRA"]
[SourceTitle "playchess.com"]
[Source "ChessBase"]
[SourceQuality "1"]
[TimeControl "5400+30"]

{[%evp 13,68,16,0,0,0,0,0,0,0,-29,-17,-45,11,11,52,56,62,9,85,52,109,33,52,18,41,14,8,21,18,0,17,0,0,0,35,0,5,-156,25,19,33,-289,-271,-775,-765,-695,-746,-693,-798,-745,-52,-50,29994,29995,29996,29997,29997]} 1. d4 {[%emt 0:00:02]} Nf6 {[%emt 0:00:08]} 2. Nf3 {[%emt 0:00:04]} e6 {[%emt 0:00:11]} 3. e3 {[%emt 0:00:06]} c5 {[%emt 0:00:10]} 4. Bd3 {[%emt 0:00:04]} Nc6 {[%emt 0:00:04]} 5. O-O {[%emt 0:00:31]} Be7 {[%emt 0:00:09]} 6. Nbd2 {[%emt 0:00:07]} O-O {[%emt 0:00:09]} 7. c3 {[%emt 0:00:26]} d5 {[%emt 0:00:13]} 8. b3 {[%emt 0:00:15]} b6 {[%emt 0:00:08]} 9. Bb2 {[%emt 0:00:04]} Bb7 {[%emt 0:00:04]} 10. Qe2 {[%emt 0:00:32] The position is equal.} a5 {[%emt 0:01:03][%cal Ba7a5,Ba5a4][%mdl 32]} 11. a3 {[%emt 0:01:53]} a4 {[%emt 0:03:09] White should prevent ...axb3.} 12. b4 {[%emt 0:01:10]} Re8 {[%emt 0:01:54]} (12... c4 $15 13. Bc2 Nb8) 13. Bb5 $11 {[%emt 0:02:54]} Qc8 {[%emt 0:02:19]} 14. Rfc1 {[%emt 0:11:16]} Rd8 {[%emt 0:03:15]} 15. Qd1 {[%emt 0:02:29]} (15. c4 $14) 15... Ne4 {[%emt 0:03:53]} (15... e5 $1 $11 {remains equal.}) 16. Bxa4 {[%emt 0:02:57]} f5 {[%emt 0:02:15]} (16... Nxd2 $14 17. Nxd2 e5) 17. Bxc6 {[%emt 0:14:10]} (17. c4 $16) 17... Bxc6 $14 {[%emt 0:01:02]} 18. bxc5 {[%emt 0:08:16]} Ba4 {[%emt 0:00:24]} 19. Qe2 {[%emt 0:00:36]} bxc5 {[%emt 0:00:05]} 20. c4 {[%emt 0:03:26]} Rb8 {[%emt 0:00:32]} 21. Rab1 {[%emt 0:00:49]} Qa6 {[%emt 0:00:47]} 22. Nxe4 {[%emt 0:06:26]} dxe4 {[%emt 0:02:26]} 23. Ne5 {[%emt 0:11:14]} Rb3 {[%emt 0:01:38] Hoping for ...Rdb8.} 24. dxc5 {[%emt 0:04:15] Bd4 would now be deadly.} Rdb8 $1 {[%emt 0:01:24][%cal Oe7f6] And now ...Bf6! would win.} 25. Rc2 $2 {[%emt 0:06:06]} ({Only move:} 25. c6 $1 $11 Bxc6 26. Qc2) 25... Qb7 $2 {[%emt 0:02:55] [#]} (25... Bxc5 $17 {[%cal Oa6b7] White must now prevent ...Qb7!} 26. Rf1 Qd6) 26. c6 $11 {[%emt 0:00:38]} Qc7 {[%emt 0:05:16][%cal Oc7e5] Threatens to win with ...Qxe5!} (26... Bxc6 {simplifies} 27. Nxc6 Qxc6 28. Rd1 Bxa3 29. Bxa3 Rxa3 30. h3 Qc5) 27. f4 {[%emt 0:05:17][%mdl 8192]} (27. Nd7 $14 {keeps the upper hand.} Ra8 28. Rc3 Rxc3 29. Bxc3 Bxc6 30. Ne5 Bxa3 31. Rb3) 27... Bc5 $1 $19 {[%emt 0:04:17]} 28. Kh1 $2 {[%emt 0:01:57]} (28. Nd7 Rxe3 29. Qf2 Bxc2 (29... Bxa3 $2 30. Qxe3 Rd8 31. Qxa3 $18) 30. Nxc5 Bxb1 31. Be5) 28... Rxe3 {[%emt 0:00:14]} 29. Qd2 {[%emt 0:02:10]} Bxc2 {[%emt 0:00:30]} 30. Qxc2 {[%emt 0:01:57]} Qa5 {[%emt 0:02:05]} (30... Bxa3 $2 31. Bd4 Rxb1+ 32. Qxb1 $16) 31. Qc1 {[%emt 0:03:30] [#] Repels Re1+} Rxb2 $2 {[%emt 0:02:27]} 32. c7 $15 {[%emt 0:00:04]} Rxb1 $2 {[%emt 0:00:03][%mdl 8192]} (32... Qxc7 $15 33. Qxb2 Bd6 (33... Rxa3 34. Qb8+ Qxb8 35. Rxb8+ Bf8 36. g3 $11)) 33. c8=Q+ {[%emt 0:00:18]} (33. c8=R+ Bf8 34. Rxf8+ Kxf8 35. Nd7+ Kg8 36. g3 Rxc1+ 37. Kg2 Re2+ (37... Rxa3 38. Kh3 Qd2 39. Ne5) 38. Kh3 Rxh2+ (38... Rxc4 39. Ne5 Qxa3 40. Nd7 Qf3 41. Nf6+ gxf6 42. Kh4 Rxh2#) 39. Kxh2 Qd2+ 40. Kh3 Rh1#) 33... Bf8 {[%emt 0:00:05]} 34. Qxe6+ {[%emt 0:00:08]} (34. Qxb1 $2 {is a self mate.} Re1+) 34... Kh8 {[%emt 0:00:14] White used his chance.   Weighted Error Value: White=0.61/Black=0.57.  Loses game:     	White=1     	---        Mistake:       	White=4     	Black=4      Inaccurate:     	White=6     	Black=2      OK:         	White=5     	Black=6      Best:        	White=1     	Black=1      Strong:       	---       	Black=2      Brilliant:      	White=1     	---} 1-0

[Event "French-ch U12-U14 2024"]
[Site "Agen"]
[Date "2024.04.19"]
[Round "7.10"]
[White "Lefol, Marius"]
[Black "Briquet, Tom"]
[Result "0-1"]
[ECO "C55"]
[WhiteElo "1948"]
[BlackElo "1809"]
[Annotator "TA"]
[PlyCount "122"]
[EventDate "2024.04.14"]
[EventType "swiss"]
[EventCountry "FRA"]
[SourceTitle "playchess.com"]
[Source "ChessBase"]
[SourceQuality "1"]
[TimeControl "5400+30"]

{[%evp 14,122,35,31,43,58,43,37,87,59,57,-19,0,-23,96,92,94,91,84,89,87,89,107,73,162,166,212,189,227,202,221,197,197,202,189,102,220,149,204,213,608,602,640,641,615,414,1626,462,422,230,437,312,321,328,361,166,617,346,912,876,29977,29978,29989,29990,29990,29985,29985,29972,29972,29973,2082,299,376,322,348,328,299,0,0,0,0,-270,-270,-261,0,-12,0,0,959,2190,1530,1408,846,0,0,0,0,-2000,-1837,-1008,-568,-566,-550,-29981,-29982,-29985,-29986,-29988,-29989,-29989,-29990]} 1. e4 {[%emt 0:00:01]} e5 {[%emt 0:00:14]} 2. Nf3 {[%emt 0:00:05]} Nc6 {[%emt 0:00:03]} 3. Bc4 {[%emt 0:00:04]} d6 {[%emt 0:00:22]} 4. O-O {[%emt 0:00:44]} Be7 {[%emt 0:00:22]} 5. c3 {[%emt 0:01:54]} Nf6 {[%emt 0:02:07]} 6. Re1 {[%emt 0:00:29]} O-O {[%emt 0:00:14]} 7. Bb3 {[%emt 0:00:04]} h6 {[%emt 0:00:25]} 8. d3 {[%emt 0:00:50]} Kh8 {[%emt 0:00:47]} 9. Nbd2 {[%emt 0:07:39]} Nh7 {[%emt 0:00:33]} 10. d4 {[%emt 0:01:30]} exd4 {[%emt 0:05:56]} (10... Bg4 $14) 11. cxd4 {[%emt 0:00:08]} Bg4 {[%emt 0:03:38]} 12. Nf1 {[%emt 0:05:41]} (12. Qc2 $14) 12... Ng5 {[%emt 0:13:44]} 13. Qd3 {[%emt 0:02:36]} Bf6 {[%emt 0:19:46]} (13... Bxf3 $11 14. gxf3 d5) 14. Nxg5 $16 {[%emt 0:00:43]} Bxg5 {[%emt 0:03:52]} 15. f4 {[%emt 0:03:50]} Bh4 {[%emt 0:15:07]} 16. g3 {[%emt 0:00:59]} Bf6 {[%emt 0:07:32]} 17. Be3 {[%emt 0:00:05]} h5 {[%emt 0:08:15]} 18. Kg2 {[%emt 0:03:18]} h4 {[%emt 0:01:58] [#]} (18... Qd7 $16) 19. h3 $1 $18 {[%emt 0:00:10]} Bd7 {[%emt 0:01:12]} (19... Bc8 $142 20. g4 d5) 20. g4 {[%emt 1:09:40]} d5 {[%emt 0:05:46]} 21. e5 {[%emt 0:00:00]} (21. Bxd5 Nb4 22. Qb3 Nxd5 23. exd5 (23. Qxd5 Bc6 $11) 23... c6 $11) 21... Be7 {[%emt 0:00:15]} 22. f5 {[%emt 0:00:00][%cal Bf4f5,Bf5g6][%mdl 32]} (22. Bxd5 $2 Nb4 23. Qe2 Nxd5 $19) 22... f6 {[%emt 0:01:58]} 23. e6 {[%emt 0:00:00]} (23. Bxd5 $2 Nb4 24. Qc4 Nxd5 $19) 23... Be8 {[%emt 0:00:52]} 24. Qe2 {[%emt 0:00:00]} (24. Bf2 $18) 24... Qd6 {[%emt 0:02:00]} (24... g5 $16 {was necessary.} 25. Rad1 Na5) 25. Bc2 {[%emt 0:00:00]} Nb4 {[%emt 0:01:38]} (25... Qb4 $16) 26. Bb1 {[%emt 0:00:00]} g5 $2 {[%emt 0:01:29]} (26... c5 27. dxc5 Qc7) 27. fxg6 {[%emt 0:00:00]} Kg7 {[%emt 0:00:09]} 28. a3 {[%emt 0:00:00]} Nc6 {[%emt 0:00:30]} 29. Qd3 {[%emt 0:00:00][%cal Oe3h6] Threatens to win with Bh6+!} a6 {[%emt 0:00:35]} (29... Rh8 $142 30. Kh1 Qd8) 30. Qf5 {[%emt 0:00:00]} (30. Bh6+ $142 Kxh6 31. g7 Nxd4 32. gxf8=Q+ (32. gxf8=R Bxf8 33. Qxd4 Qe7 $18) 32... Bxf8 33. Qxd4) 30... Rh8 {[%emt 0:01:06]} 31. Rd1 {[%emt 0:00:00]} (31. Qf2 $142) 31... Na5 $2 {[%emt 0:00:57]} (31... Nd8 32. Bf4 Qb6) 32. b4 {[%emt 0:00:00]} Nc4 {[%emt 0:00:15] aiming for ...Nxe3+.} 33. Bf4 {[%emt 0:00:00]} Qd8 {[%emt 0:00:01]} 34. Nd2 {[%emt 0:00:00]} (34. Ne3 $142) 34... b5 $2 {[%emt 0:00:18]} (34... Nd6 35. Qd3 (35. Qxd5 $2 Bc6 $19) 35... a5) 35. Rf1 {[%emt 0:00:00] Nxc4 would now be deadly.} a5 $2 {[%emt 0:00:29]} (35... Nd6) 36. Nxc4 {[%emt 0:00:00]} bxc4 {[%emt 0:00:11] [#]} 37. g5 $1 {[%emt 0:00:00][%mdl 512]} axb4 {[%emt 0:00:24]} (37... Kg8 38. gxf6) 38. gxf6+ {[%emt 0:00:00]} Bxf6 {[%emt 0:00:06] [#]} 39. Bxc7 $1 {[%emt 0:00:00][%mdl 512]} Qe7 {[%emt 0:00:48] [#]} 40. Bd6 $1 {[%emt 0:00:00][%mdl 512]} Qxd6 {[%emt 0:00:18]} 41. Qxf6+ {[%emt 0:00:00]} Kg8 {[%emt 0:00:11]} 42. Bf5 $2 {[%emt 0:00:00]} (42. Rf3 {White wants to mate with g7.} Rh6 43. Qg5) 42... Rh5 {[%emt 0:01:52]} 43. Bg4 {[%emt 0:00:00]} Rh6 {[%emt 0:00:38]} 44. axb4 {[%emt 0:00:00]} Rxg6 {[%emt 0:01:18]} 45. Qxg6+ $2 {[%emt 0:00:00]} (45. Rxa8 Rxf6 (45... Qg3+ 46. Kh1 $11) 46. Rxf6 Qg3+ 47. Kf1 Qd3+ 48. Ke1 Qe4+ 49. Kf1 Qd3+ 50. Kg2 Kg7 $11 (50... Qg3+ 51. Kf1 $11)) ({White should play} 45. Qxh4 $18 Rxa1 46. Rxa1) 45... Bxg6 $11 {[%emt 0:00:09]} 46. Rxa8+ {[%emt 0:00:00]} Kg7 {[%emt 0:00:12]} 47. Ra7+ $2 {[%emt 0:00:00][%mdl 8192]} (47. Ra3 $1 $11 {and White has nothing to worry.}) 47... Kh6 $19 {[%emt 0:00:21]} 48. Ra3 {[%emt 0:00:00] Inhibits Qg3+.} (48. Rf3 Be4 (48... Qxb4 49. e7 $11) 49. e7 Qg3+ (49... Bxf3+ 50. Kxf3 Qg3+ 51. Ke2 $11) 50. Kf1 Bxf3 $19 (50... Bd3+ 51. Rxd3 Qxd3+ 52. Kg2 $15)) 48... Bd3 $2 {[%emt 0:00:36]} (48... Qxb4 $19 49. Ra2 c3) 49. Rf6+ $11 {[%emt 0:00:00]} Kg5 {[%emt 0:00:11] Dancing on a razor blade.} 50. Rxd3 {[%emt 0:00:00]} (50. Rf3 Be4 (50... Qxb4 51. Rfxd3 Qb2+ 52. Kh1 $11) 51. Kf1 Qxb4) 50... cxd3 {[%emt 0:00:18][%mdl 12288] Endgame. KQ-KRB} (50... Kxf6 $11 51. Rf3+ Ke7) 51. Rf5+ $18 {[%emt 0:00:00]} Kg6 {[%emt 0:00:12]} 52. Re5 {[%emt 0:00:00] e7 would kill now.} Qe7 {[%emt 0:01:42]} 53. Rxd5 $2 {[%emt 0:00:00]} (53. b5 $18 {[%cal Ob5b6] And now b6! would win.} d2 54. Bd1 (54. b6 Qa3 $11)) 53... Qb7 {[%emt 0:00:32]} 54. Bf3 {[%emt 0:00:00] Intending Be4+ and mate.} d2 {[%emt 0:01:07]} (54... Qxb4 $5 55. Re5 $8 Qb2+ (55... Qxd4 56. Bh5+ Kh7 57. e7 $11) 56. Kh1 Qf2 (56... Qxd4 57. Bh5+ Kf6 58. e7 $11) 57. Bh5+ Kh6 $11 (57... Kf6 58. e7 $11)) 55. e7 $2 {[%emt 0:00:00][%mdl 8192]} Qxe7 $19 {[%emt 0:00:21]} ({Not} 55... Qxb4 56. e8=Q+ (56. e8=R Qa3 $14) 56... Kf6 57. Bh5 (57. Qe5+ Kg6 58. Qg5+ Kh7 59. Be4+ Kh8 60. Qf6+ Kg8 61. Rg5#) 57... Kg7 58. Qg6+ Kh8 59. Qh6+ Kg8 60. Rg5#) 56. Re5 {[%emt 0:00:00]} Qxb4 {[%emt 0:00:15]} 57. Re6+ {[%emt 0:00:00]} Kf7 {[%emt 0:02:53]} 58. Ra6 {[%emt 0:00:00]} Qxd4 {[%emt 0:00:00] Black mates.} 59. Bd1 {[%emt 0:00:00]} Qe4+ {[%emt 0:00:00]} 60. Kh2 {[%emt 0:00:00]} Qf4+ {[%emt 0:00:00]} 61. Kg2 {[%emt 0:00:00]} Qg3+ {[%emt 0:00:00] Weighted Error Value: White=0.89/Black=0.67.  Loses game:     	White=2     	Black=1      Missed win:     	White=1     	Black=1      Mistake:       	White=3     	Black=10     Inaccurate:     	White=5     	Black=1      OK:         	White=11    	Black=8      Best:        	White=5     	Black=6} 0-1

[Event "French-ch U12-U14 2024"]
[Site "Agen"]
[Date "2024.04.19"]
[Round "7.11"]
[White "Bernard, Ines"]
[Black "Castagnerol, Cerise"]
[Result "1-0"]
[ECO "C00"]
[WhiteElo "1981"]
[BlackElo "1755"]
[Annotator "TA"]
[PlyCount "65"]
[EventDate "2024.04.14"]
[EventType "swiss"]
[EventCountry "FRA"]
[SourceTitle "playchess.com"]
[Source "ChessBase"]
[SourceQuality "1"]
[TimeControl "5400+30"]

{[%evp 12,65,20,0,26,27,35,8,6,0,5,0,22,6,15,21,59,38,111,0,70,67,81,43,53,0,56,41,46,43,61,71,61,65,258,259,308,250,260,267,340,338,344,350,343,323,367,326,492,343,464,419,525,504,29962,12143]} 1. e4 {[%emt 0:00:06]} e6 {[%emt 0:00:17]} 2. d3 {[%emt 0:00:08]} d5 {[%emt 0:00:11]} 3. Qe2 {[%emt 0:00:05]} dxe4 {[%emt 0:01:03]} 4. dxe4 {[%emt 0:00:05]} e5 {[%emt 0:00:15]} 5. Nf3 {[%emt 0:00:17]} Nc6 {[%emt 0:00:27]} 6. c3 {[%emt 0:00:03]} Nf6 {[%emt 0:00:38]} 7. Qc2 {[%emt 0:00:22]} Be6 {[%emt 0:00:43]} 8. Bb5 {[%emt 0:01:29]} Bd6 {[%emt 0:01:06]} 9. Bxc6+ {[%emt 0:01:30]} bxc6 {[%emt 0:00:01] The position is equal.} 10. O-O {[%emt 0:00:28]} O-O {[%emt 0:00:55]} 11. Bg5 {[%emt 0:00:56]} Qe7 {[%emt 0:03:03]} 12. Nbd2 {[%emt 0:02:35]} Rab8 {[%emt 0:04:05]} 13. Rfd1 {[%emt 0:03:37]} Rb6 {[%emt 0:02:32]} 14. c4 {[%emt 0:04:18]} Bg4 {[%emt 0:04:50]} (14... c5 $14) 15. Rac1 {[%emt 0:03:17]} ({Better is} 15. Bxf6 $16 gxf6 16. h3) 15... Bc5 {[%emt 0:01:48]} (15... Bb4 $11) 16. Nb3 $14 {[%emt 0:07:10]} Rfb8 {[%emt 0:04:10]} 17. Qd3 {[%emt 0:01:19]} Bb4 {[%emt 0:06:48]} 18. Rb1 {[%emt 0:06:33]} ({White should play} 18. c5 $14 Rb5 19. h3) 18... Qe8 {[%emt 0:08:35]} (18... h6 $11 19. Be3 R6b7) 19. h3 {[%emt 0:06:58][%cal Og5f6] [#] And now Bxf6! would win.} Bxf3 $1 {[%emt 0:11:45]} 20. Qxf3 {[%emt 0:02:39]} Be7 {[%emt 0:03:24]} 21. Bxf6 {[%emt 0:02:45]} Bxf6 {[%emt 0:01:36]} 22. Qc3 {[%emt 0:00:59] White is more active.} Rb4 $2 {[%emt 0:03:58] Loses the game.} (22... Qe7 $14) 23. Nc5 $18 {[%emt 0:01:25]} Qc8 {[%emt 0:03:45]} 24. a3 {[%emt 0:02:47]} R4b6 {[%emt 0:02:45]} 25. Nd7 {[%emt 0:00:13]} Rb3 {[%emt 0:02:24]} 26. Qc2 {[%emt 0:00:55]} Be7 {[%emt 0:01:49]} 27. Nxb8 {[%emt 0:00:44]} Qxb8 {[%emt 0:00:13]} 28. Rd3 {[%emt 0:00:50]} Rb7 {[%emt 0:03:52]} 29. Qc3 {[%emt 0:01:00]} f6 {[%emt 0:01:00]} (29... Bf6 $142 30. Rbd1 Kf8) 30. b4 {[%emt 0:02:39] c5 is the strong threat.} a5 {[%emt 0:01:13] [#]} 31. b5 $1 {[%emt 0:02:21]} cxb5 {[%emt 0:02:41]} (31... Qe8 32. Qxa5) 32. cxb5 {[%emt 0:00:09]} Rxb5 {[%emt 0:00:23]} (32... Kf8 $18 33. a4 (33. Qxa5 Bc5 $18) 33... Bd6) 33. Qc4+ {[%emt 0:00:27] Weighted Error Value: White=0.26 (precise) /Black=0.74.  Loses game:     	---       	Black=1      Mistake:       	White=2     	Black=5      Inaccurate:     	White=3     	Black=2      OK:         	White=4     	Black=5      Best:        	White=2     	---        Strong:       	---       	Black=1} 1-0